[Event "Early-Titled-Tuesday-Blitz-January-30-2024"]
[Site "Chess.com"]
[Date "2024.01.30"]
[Round "4"]
[White "VitaliyBernadskiy"]
[Black "Maxfan2008"]
[Result "1-0"]
[WhiteElo "2920"]
[BlackElo "2506"]
[TimeControl "180+1"]
[EndTime "8:37:25 PST"]
[Termination "VitaliyBernadskiy won by resignation"]

1. e4 {[%clk 0:03:00.9]} 1... c5 {[%clk 0:02:53.5]} 2. Nc3 {[%clk 0:03:00.2]}
2... e6 {[%clk 0:02:53.2]} 3. Nf3 {[%clk 0:02:59.3]} 3... Nc6 {[%clk 0:02:52.1]}
4. Bb5 {[%clk 0:02:59.4]} 4... Nd4 {[%clk 0:02:51]} 5. O-O {[%clk 0:02:58.2]}
5... Nxb5 {[%clk 0:02:48.1]} 6. Nxb5 {[%clk 0:02:58]} 6... a6 {[%clk 0:02:49]}
7. Nc3 {[%clk 0:02:58.3]} 7... b5 {[%clk 0:02:47.3]} 8. d4 {[%clk 0:02:58.8]}
8... cxd4 {[%clk 0:02:45.6]} 9. Qxd4 {[%clk 0:02:59.7]} 9... Ne7 {[%clk
0:02:42.8]} 10. Bf4 {[%clk 0:02:57.8]} 10... Nc6 {[%clk 0:02:40]} 11. Qe3 {[%clk
0:02:57.9]} 11... Be7 {[%clk 0:02:39.3]} 12. Nd5 {[%clk 0:02:57.8]} 12... O-O
{[%clk 0:02:36.9]} 13. Nxe7+ {[%clk 0:02:56.3]} 13... Qxe7 {[%clk 0:02:35.4]}
14. Rad1 {[%clk 0:02:56.8]} 14... e5 {[%clk 0:02:34.1]} 15. Bg3 {[%clk
0:02:56.3]} 15... f6 {[%clk 0:02:33.5]} 16. c3 {[%clk 0:02:50.6]} 16... Bb7
{[%clk 0:02:30.5]} 17. Nh4 {[%clk 0:02:42.1]} 17... Qe6 {[%clk 0:02:27.2]} 18.
Nf5 {[%clk 0:02:41.1]} 18... Rad8 {[%clk 0:02:24.2]} 19. Nd6 {[%clk 0:02:27.1]}
19... Ba8 {[%clk 0:02:22.7]} 20. b3 {[%clk 0:02:26.1]} 20... Ne7 {[%clk
0:02:21]} 21. Qa7 {[%clk 0:02:16.6]} 21... Bc6 {[%clk 0:02:19.5]} 22. Qc5 {[%clk
0:02:12.9]} 22... h6 {[%clk 0:02:13.8]} 23. f3 {[%clk 0:02:11.2]} 23... Nc8
{[%clk 0:02:11.4]} 24. Bf2 {[%clk 0:02:10.5]} 24... Nxd6 {[%clk 0:02:09.9]} 25.
Rxd6 {[%clk 0:02:11.4]} 25... Qe7 {[%clk 0:02:07.6]} 26. Rxc6 {[%clk 0:02:09.2]}
26... Qxc5 {[%clk 0:02:05.3]} 27. Rxc5 {[%clk 0:02:09.1]} 27... d6 {[%clk
0:02:04.3]} 28. Rc6 {[%clk 0:02:09.1]} 28... Rc8 {[%clk 0:02:03.7]} 29. Rxc8
{[%clk 0:02:07]} 29... Rxc8 {[%clk 0:02:01.3]} 30. Rc1 {[%clk 0:02:07.7]} 30...
Kf7 {[%clk 0:01:59.9]} 31. Kf1 {[%clk 0:02:08.1]} 31... Ke7 {[%clk 0:01:58.8]}
32. c4 {[%clk 0:02:08.8]} 32... bxc4 {[%clk 0:01:55.8]} 33. Rxc4 {[%clk
0:02:08.3]} 33... Rxc4 {[%clk 0:01:55]} 34. bxc4 {[%clk 0:02:09.2]} 34... g6
{[%clk 0:01:53.8]} 35. Ke2 {[%clk 0:02:09.4]} 35... Kd7 {[%clk 0:01:52.3]} 36.
Kd3 {[%clk 0:02:10.3]} 36... Kc6 {[%clk 0:01:51]} 37. Kc3 {[%clk 0:02:10.8]}
37... a5 {[%clk 0:01:50.2]} 38. Kb3 {[%clk 0:02:11.1]} 38... Kb7 {[%clk
0:01:49.6]} 39. Ka4 {[%clk 0:02:11.4]} 39... Ka6 {[%clk 0:01:48.5]} 40. Be1
{[%clk 0:02:11.9]} 1-0

[Event "Early-Titled-Tuesday-Blitz-January-30-2024"]
[Site "Chess.com"]
[Date "2024.01.30"]
[Round "4"]
[White "Aygehovit1992"]
[Black "korkmaz16"]
[Result "1-0"]
[WhiteElo "2692"]
[BlackElo "2458"]
[TimeControl "180+1"]
[EndTime "8:37:34 PST"]
[Termination "Aygehovit1992 won by resignation"]

1. e4 {[%clk 0:03:00.9]} 1... e6 {[%clk 0:02:59.5]} 2. d4 {[%clk 0:03:00.7]}
2... d5 {[%clk 0:03:00]} 3. Nc3 {[%clk 0:03:01.5]} 3... Nf6 {[%clk 0:03:00.4]}
4. Bg5 {[%clk 0:03:01]} 4... Be7 {[%clk 0:03:00]} 5. e5 {[%clk 0:03:01.1]} 5...
Nfd7 {[%clk 0:03:00.6]} 6. h4 {[%clk 0:03:01.3]} 6... Bxg5 {[%clk 0:02:59.7]} 7.
hxg5 {[%clk 0:03:02.2]} 7... Qxg5 {[%clk 0:03:00]} 8. Nh3 {[%clk 0:03:01.5]}
8... Qe7 {[%clk 0:02:59.8]} 9. Qg4 {[%clk 0:03:01]} 9... f5 {[%clk 0:02:57.2]}
10. Qg3 {[%clk 0:02:58.9]} 10... Nc6 {[%clk 0:02:55.7]} 11. O-O-O {[%clk
0:02:55.9]} 11... Nf8 {[%clk 0:02:54.4]} 12. Nf4 {[%clk 0:02:55.4]} 12... Bd7
{[%clk 0:02:53.4]} 13. Nfxd5 {[%clk 0:02:47.2]} 13... exd5 {[%clk 0:02:44]} 14.
Nxd5 {[%clk 0:02:48.1]} 14... Qf7 {[%clk 0:02:42.6]} 15. Nxc7+ {[%clk
0:02:47.2]} 15... Kd8 {[%clk 0:02:43]} 16. Nxa8 {[%clk 0:02:44.3]} 16... Qxa2
{[%clk 0:02:39]} 17. Qxg7 {[%clk 0:02:38.8]} 17... Rg8 {[%clk 0:02:38.6]} 18.
Qf6+ {[%clk 0:02:38.6]} 18... Kc8 {[%clk 0:02:38.3]} 19. Qd6 {[%clk 0:02:30.2]}
19... Ne6 {[%clk 0:02:27.9]} 20. Rxh7 {[%clk 0:02:29.1]} 20... Rd8 {[%clk
0:02:25]} 21. Qa3 {[%clk 0:02:22.2]} 21... Qxa3 {[%clk 0:02:19]} 22. bxa3 {[%clk
0:02:22]} 22... Ncxd4 {[%clk 0:02:16.6]} 23. Bc4 {[%clk 0:02:18.7]} 23... Kb8
{[%clk 0:02:04.7]} 24. c3 {[%clk 0:02:16.9]} 24... Rc8 {[%clk 0:01:29.9]} 25.
Rxd7 {[%clk 0:02:11.6]} 25... Rxc4 {[%clk 0:01:27.3]} 26. R1xd4 {[%clk
0:02:11.4]} 26... Nxd4 {[%clk 0:01:19.3]} 27. Rd8+ {[%clk 0:02:10.7]} 27... Rc8
{[%clk 0:01:17]} 28. Rxc8+ {[%clk 0:02:10.2]} 28... Kxc8 {[%clk 0:01:17.1]} 29.
cxd4 {[%clk 0:02:10.7]} 1-0

[Event "Early-Titled-Tuesday-Blitz-January-30-2024"]
[Site "Chess.com"]
[Date "2024.01.30"]
[Round "4"]
[White "GrotBchess"]
[Black "Irishchessman16"]
[Result "0-1"]
[WhiteElo "2297"]
[BlackElo "2518"]
[TimeControl "180+1"]
[EndTime "8:37:45 PST"]
[Termination "Irishchessman16 won on time"]

1. e4 {[%clk 0:03:00.9]} 1... c5 {[%clk 0:02:58.3]} 2. Nf3 {[%clk 0:02:58.3]}
2... Nc6 {[%clk 0:02:55.8]} 3. d4 {[%clk 0:02:56.2]} 3... cxd4 {[%clk
0:02:55.6]} 4. Nxd4 {[%clk 0:02:57.1]} 4... Nf6 {[%clk 0:02:55.5]} 5. Nc3 {[%clk
0:02:57.2]} 5... h5 {[%clk 0:02:55.7]} 6. h3 {[%clk 0:02:52.1]} 6... g6 {[%clk
0:02:55]} 7. Be2 {[%clk 0:02:50.6]} 7... Bg7 {[%clk 0:02:54.7]} 8. Be3 {[%clk
0:02:50.2]} 8... d6 {[%clk 0:02:49.8]} 9. O-O {[%clk 0:02:43.7]} 9... Nxd4
{[%clk 0:02:46.2]} 10. Bxd4 {[%clk 0:02:41.9]} 10... O-O {[%clk 0:02:46.6]} 11.
f4 {[%clk 0:02:33.1]} 11... a6 {[%clk 0:02:33]} 0-1

[Event "Early-Titled-Tuesday-Blitz-January-30-2024"]
[Site "Chess.com"]
[Date "2024.01.30"]
[Round "4"]
[White "SahibSinghKnight"]
[Black "margarita_2703"]
[Result "1-0"]
[WhiteElo "2662"]
[BlackElo "2335"]
[TimeControl "180+1"]
[EndTime "8:38:01 PST"]
[Termination "SahibSinghKnight won by resignation"]

1. e4 {[%clk 0:02:57.5]} 1... e5 {[%clk 0:02:58.3]} 2. Nf3 {[%clk 0:02:57]} 2...
Nc6 {[%clk 0:02:39.4]} 3. Bb5 {[%clk 0:02:56]} 3... a6 {[%clk 0:02:37.5]} 4. Ba4
{[%clk 0:02:55.6]} 4... Nf6 {[%clk 0:02:36.6]} 5. O-O {[%clk 0:02:55.2]} 5...
Nxe4 {[%clk 0:02:36.2]} 6. d4 {[%clk 0:02:55.4]} 6... b5 {[%clk 0:02:36]} 7. Bb3
{[%clk 0:02:55.2]} 7... d5 {[%clk 0:02:36.7]} 8. dxe5 {[%clk 0:02:55.8]} 8...
Be6 {[%clk 0:02:37.3]} 9. Nbd2 {[%clk 0:02:56]} 9... Nc5 {[%clk 0:02:28.1]} 10.
c3 {[%clk 0:02:52.3]} 10... d4 {[%clk 0:02:24.9]} 11. Bxe6 {[%clk 0:02:30.5]}
11... Nxe6 {[%clk 0:02:24.8]} 12. Ne4 {[%clk 0:02:16.8]} 12... Qd5 {[%clk
0:02:22.3]} 13. Neg5 {[%clk 0:02:11.2]} 13... O-O-O {[%clk 0:01:47.6]} 14. Nxf7
{[%clk 0:02:08]} 14... Bc5 {[%clk 0:01:42.7]} 15. Nxh8 {[%clk 0:01:57.4]} 15...
Rxh8 {[%clk 0:01:43.6]} 16. b4 {[%clk 0:01:54.4]} 16... Bb6 {[%clk 0:01:41.6]}
17. a4 {[%clk 0:01:54.5]} 17... Nxe5 {[%clk 0:01:39]} 18. axb5 {[%clk
0:01:45.6]} 18... Rf8 {[%clk 0:01:35.4]} 19. Nxe5 {[%clk 0:01:41.9]} 19... Qxe5
{[%clk 0:01:34.3]} 20. c4 {[%clk 0:01:41.7]} 20... axb5 {[%clk 0:01:12.9]} 21.
c5 {[%clk 0:01:39.2]} 21... Bxc5 {[%clk 0:01:10.3]} 22. bxc5 {[%clk 0:01:39]}
22... Nxc5 {[%clk 0:01:11.2]} 23. Ra8+ {[%clk 0:01:38.4]} 1-0

[Event "Early-Titled-Tuesday-Blitz-January-30-2024"]
[Site "Chess.com"]
[Date "2024.01.30"]
[Round "4"]
[White "SujanaLohani"]
[Black "Roosters19"]
[Result "0-1"]
[WhiteElo "2001"]
[BlackElo "2311"]
[TimeControl "180+1"]
[EndTime "8:38:20 PST"]
[Termination "Roosters19 won by resignation"]

1. d4 {[%clk 0:01:09.6]} 1... Nf6 {[%clk 0:02:51.9]} 2. Nf3 {[%clk 0:01:10.5]}
2... g6 {[%clk 0:02:51.1]} 3. c4 {[%clk 0:01:10.7]} 3... Bg7 {[%clk 0:02:48.9]}
4. g3 {[%clk 0:01:11.6]} 4... c5 {[%clk 0:02:49.2]} 5. Bg2 {[%clk 0:01:12.3]}
5... cxd4 {[%clk 0:02:48.5]} 6. Nc3 {[%clk 0:01:13.2]} 6... dxc3 {[%clk
0:02:47.2]} 7. bxc3 {[%clk 0:01:13.7]} 7... Nc6 {[%clk 0:02:47]} 8. O-O {[%clk
0:01:13.8]} 8... O-O {[%clk 0:02:47]} 9. Nd4 {[%clk 0:01:13]} 9... d6 {[%clk
0:02:45.2]} 10. e3 {[%clk 0:01:09.6]} 10... Bd7 {[%clk 0:02:43.5]} 11. Ba3
{[%clk 0:01:09.1]} 11... Rb8 {[%clk 0:02:40.7]} 12. Rb1 {[%clk 0:01:09]} 12...
Ne5 {[%clk 0:02:35.9]} 13. Qe2 {[%clk 0:00:58]} 13... Qc7 {[%clk 0:02:29.5]} 14.
Rb4 {[%clk 0:00:47.7]} 14... a5 {[%clk 0:02:15.3]} 15. Rb3 {[%clk 0:00:38.9]}
15... Qxc4 {[%clk 0:02:12.9]} 16. Qxc4 {[%clk 0:00:24.8]} 16... Nxc4 {[%clk
0:02:13.8]} 17. Rfb1 {[%clk 0:00:22.4]} 17... Nd2 {[%clk 0:02:09.5]} 18. Rxb7
{[%clk 0:00:21.1]} 18... Nxb1 {[%clk 0:02:09.5]} 0-1

[Event "Early-Titled-Tuesday-Blitz-January-30-2024"]
[Site "Chess.com"]
[Date "2024.01.30"]
[Round "4"]
[White "nihalsarin"]
[Black "GP9isback23"]
[Result "1-0"]
[WhiteElo "3167"]
[BlackElo "2635"]
[TimeControl "180+1"]
[EndTime "8:38:23 PST"]
[Termination "nihalsarin won by resignation"]

1. d4 {[%clk 0:03:00.9]} 1... Nf6 {[%clk 0:02:58.8]} 2. c4 {[%clk 0:03:01.5]}
2... e6 {[%clk 0:02:59.2]} 3. Nf3 {[%clk 0:03:00.8]} 3... b6 {[%clk 0:02:59.2]}
4. a3 {[%clk 0:02:59]} 4... Bb7 {[%clk 0:02:59]} 5. Nc3 {[%clk 0:02:59.8]} 5...
d5 {[%clk 0:02:59.1]} 6. cxd5 {[%clk 0:03:00.7]} 6... exd5 {[%clk 0:02:52.1]} 7.
Bg5 {[%clk 0:03:00.5]} 7... Be7 {[%clk 0:02:52]} 8. e3 {[%clk 0:03:00.3]} 8...
Nbd7 {[%clk 0:02:51.5]} 9. Bd3 {[%clk 0:03:00.4]} 9... O-O {[%clk 0:02:51.7]}
10. O-O {[%clk 0:03:00.4]} 10... Ne4 {[%clk 0:02:48.2]} 11. Bxe7 {[%clk
0:02:57.6]} 11... Qxe7 {[%clk 0:02:49.1]} 12. Rc1 {[%clk 0:02:58.1]} 12... c5
{[%clk 0:02:44.3]} 13. dxc5 {[%clk 0:02:56.6]} 13... Ndxc5 {[%clk 0:02:43.4]}
14. Be2 {[%clk 0:02:54.7]} 14... Rad8 {[%clk 0:02:36.3]} 15. Nd4 {[%clk
0:02:54.7]} 15... Rfe8 {[%clk 0:02:31.6]} 16. b4 {[%clk 0:02:39.9]} 16... Ne6
{[%clk 0:02:21.6]} 17. Ncb5 {[%clk 0:02:35.4]} 17... a6 {[%clk 0:02:15.1]} 18.
Nxe6 {[%clk 0:02:17.1]} 18... fxe6 {[%clk 0:02:12.5]} 19. Nc7 {[%clk 0:02:18]}
19... Rf8 {[%clk 0:02:01.3]} 20. Nxa6 {[%clk 0:02:18.3]} 20... Qh4 {[%clk
0:01:25.1]} 21. f3 {[%clk 0:02:14.6]} 21... Nd6 {[%clk 0:01:13.8]} 22. Nc7
{[%clk 0:02:11.9]} 22... Qh6 {[%clk 0:00:51.8]} 23. Qd4 {[%clk 0:02:06.7]} 23...
Nf5 {[%clk 0:00:50.8]} 24. Qxb6 {[%clk 0:02:06.6]} 24... Qxe3+ {[%clk
0:00:40.9]} 25. Qxe3 {[%clk 0:02:06.4]} 25... Nxe3 {[%clk 0:00:41.5]} 26. Nxe6
{[%clk 0:02:07.1]} 26... Nxf1 {[%clk 0:00:32.6]} 27. Nxd8 {[%clk 0:02:06]} 27...
Rxd8 {[%clk 0:00:32.5]} 28. Kxf1 {[%clk 0:02:06.2]} 1-0

[Event "Early-Titled-Tuesday-Blitz-January-30-2024"]
[Site "Chess.com"]
[Date "2024.01.30"]
[Round "4"]
[White "anasta10"]
[Black "Karina_Ivanova"]
[Result "1-0"]
[WhiteElo "2514"]
[BlackElo "2288"]
[TimeControl "180+1"]
[EndTime "8:38:23 PST"]
[Termination "anasta10 won by resignation"]

1. Nf3 {[%clk 0:02:53]} 1... Nf6 {[%clk 0:02:58.5]} 2. c4 {[%clk 0:02:52.9]}
2... c5 {[%clk 0:02:55.6]} 3. g3 {[%clk 0:02:53.2]} 3... b6 {[%clk 0:02:54.7]}
4. Bg2 {[%clk 0:02:53.8]} 4... Bb7 {[%clk 0:02:54.5]} 5. O-O {[%clk 0:02:54.5]}
5... e6 {[%clk 0:02:54.2]} 6. b3 {[%clk 0:02:54]} 6... Be7 {[%clk 0:02:52.9]} 7.
Bb2 {[%clk 0:02:54.6]} 7... O-O {[%clk 0:02:50]} 8. Nc3 {[%clk 0:02:54.4]} 8...
d5 {[%clk 0:02:48.3]} 9. Ne5 {[%clk 0:02:51.1]} 9... Nbd7 {[%clk 0:02:45.3]} 10.
Nb5 {[%clk 0:02:42.8]} 10... a6 {[%clk 0:02:36.8]} 11. Na3 {[%clk 0:02:42.1]}
11... Nxe5 {[%clk 0:02:26.9]} 12. Bxe5 {[%clk 0:02:43]} 12... Qd7 {[%clk
0:02:26.3]} 13. d3 {[%clk 0:02:41.2]} 13... d4 {[%clk 0:02:15.6]} 14. Bxf6
{[%clk 0:02:37.5]} 14... Bxf6 {[%clk 0:02:10.4]} 15. Nc2 {[%clk 0:02:37.8]}
15... e5 {[%clk 0:02:02.6]} 16. Bxb7 {[%clk 0:02:33.7]} 16... Qxb7 {[%clk
0:02:02.1]} 17. f3 {[%clk 0:02:34.6]} 17... Be7 {[%clk 0:01:59.9]} 18. Qd2
{[%clk 0:02:33.1]} 18... f5 {[%clk 0:01:59.3]} 19. b4 {[%clk 0:02:32.2]} 19...
Rab8 {[%clk 0:01:50.2]} 20. Rab1 {[%clk 0:02:30.2]} 20... Qc6 {[%clk 0:01:45.5]}
21. bxc5 {[%clk 0:02:23.1]} 21... bxc5 {[%clk 0:01:42.7]} 22. Qa5 {[%clk
0:02:20.5]} 22... Bd6 {[%clk 0:01:22.2]} 23. Rb3 {[%clk 0:02:12.1]} 23... Bc7
{[%clk 0:01:21]} 24. Qa3 {[%clk 0:02:09.7]} 24... Rxb3 {[%clk 0:01:17.5]} 25.
axb3 {[%clk 0:02:10.6]} 25... e4 {[%clk 0:01:04.3]} 26. fxe4 {[%clk 0:02:07.5]}
26... fxe4 {[%clk 0:01:04]} 27. Rxf8+ {[%clk 0:02:07.9]} 27... Kxf8 {[%clk
0:01:02.5]} 28. Nxd4 {[%clk 0:01:58]} 28... Qd6 {[%clk 0:00:54.8]} 29. Qxc5
{[%clk 0:01:48.3]} 1-0

[Event "Early-Titled-Tuesday-Blitz-January-30-2024"]
[Site "Chess.com"]
[Date "2024.01.30"]
[Round "4"]
[White "mbojan"]
[Black "Polish_fighter3000"]
[Result "0-1"]
[WhiteElo "2873"]
[BlackElo "3058"]
[TimeControl "180+1"]
[EndTime "8:38:26 PST"]
[Termination "Polish_fighter3000 won on time"]

1. e4 {[%clk 0:03:00]} 1... c5 {[%clk 0:02:59.1]} 2. Nf3 {[%clk 0:03:00.4]} 2...
d6 {[%clk 0:02:58.8]} 3. d4 {[%clk 0:03:00.2]} 3... cxd4 {[%clk 0:02:58.7]} 4.
Nxd4 {[%clk 0:03:01.1]} 4... Nf6 {[%clk 0:02:58.8]} 5. Nc3 {[%clk 0:03:01.8]}
5... a6 {[%clk 0:02:59.5]} 6. Be2 {[%clk 0:03:00.1]} 6... g6 {[%clk 0:02:57.7]}
7. Be3 {[%clk 0:02:33.3]} 7... Nc6 {[%clk 0:02:51.3]} 8. Qd2 {[%clk 0:02:23.4]}
8... h5 {[%clk 0:02:39.1]} 9. O-O-O {[%clk 0:02:14.7]} 9... Bd7 {[%clk
0:02:38.8]} 10. f4 {[%clk 0:02:13.6]} 10... Bg7 {[%clk 0:02:37.9]} 11. Bf3
{[%clk 0:01:43.8]} 11... Rc8 {[%clk 0:02:33.6]} 12. Nxc6 {[%clk 0:01:02.6]}
12... Bxc6 {[%clk 0:02:32.9]} 13. e5 {[%clk 0:01:03.3]} 13... dxe5 {[%clk
0:02:29.7]} 14. Qxd8+ {[%clk 0:00:40.9]} 14... Rxd8 {[%clk 0:02:30.6]} 15. Rxd8+
{[%clk 0:00:41.3]} 15... Kxd8 {[%clk 0:02:30.6]} 16. fxe5 {[%clk 0:00:37.7]}
16... Ng4 {[%clk 0:02:29]} 17. Bb6+ {[%clk 0:00:36.8]} 17... Kd7 {[%clk
0:02:21]} 18. Rd1+ {[%clk 0:00:28.5]} 18... Ke6 {[%clk 0:02:20]} 19. Nd5 {[%clk
0:00:26.2]} 19... Bxe5 {[%clk 0:02:14.1]} 20. Re1 {[%clk 0:00:07.2]} 20... Bxd5
{[%clk 0:02:12]} 0-1

[Event "Early-Titled-Tuesday-Blitz-January-30-2024"]
[Site "Chess.com"]
[Date "2024.01.30"]
[Round "4"]
[White "PushingpawnsNYC"]
[Black "arnash_bauyrzhan"]
[Result "0-1"]
[WhiteElo "2406"]
[BlackElo "2210"]
[TimeControl "180+1"]
[EndTime "8:38:26 PST"]
[Termination "arnash_bauyrzhan won by checkmate"]

1. e4 {[%clk 0:02:57.5]} 1... c5 {[%clk 0:02:59.6]} 2. Nc3 {[%clk 0:02:57.3]}
2... Nc6 {[%clk 0:02:59.4]} 3. Bb5 {[%clk 0:02:57.3]} 3... Nd4 {[%clk
0:02:58.7]} 4. Nf3 {[%clk 0:02:57.3]} 4... a6 {[%clk 0:02:56.7]} 5. Bd3 {[%clk
0:02:56.7]} 5... d6 {[%clk 0:02:53.5]} 6. h3 {[%clk 0:02:54.9]} 6... Nf6 {[%clk
0:02:51.1]} 7. O-O {[%clk 0:02:51.3]} 7... e5 {[%clk 0:02:51.1]} 8. Re1 {[%clk
0:02:44.4]} 8... Be7 {[%clk 0:02:51.2]} 9. Nxd4 {[%clk 0:02:40.3]} 9... cxd4
{[%clk 0:02:52.1]} 10. Ne2 {[%clk 0:02:40.9]} 10... b5 {[%clk 0:02:49.8]} 11. c3
{[%clk 0:02:41.2]} 11... dxc3 {[%clk 0:02:46.6]} 12. dxc3 {[%clk 0:02:39.1]}
12... O-O {[%clk 0:02:45.4]} 13. Ng3 {[%clk 0:02:33.3]} 13... Be6 {[%clk
0:02:43.1]} 14. f4 {[%clk 0:02:31]} 14... Qc7 {[%clk 0:02:29]} 15. Be3 {[%clk
0:02:18.5]} 15... Rfd8 {[%clk 0:02:21.8]} 16. Qf3 {[%clk 0:02:16.5]} 16... Bc4
{[%clk 0:02:14.2]} 17. Bc2 {[%clk 0:02:09.5]} 17... Rac8 {[%clk 0:01:52]} 18. a4
{[%clk 0:01:45.7]} 18... b4 {[%clk 0:01:50.8]} 19. cxb4 {[%clk 0:01:45.6]} 19...
d5 {[%clk 0:01:38.2]} 20. fxe5 {[%clk 0:01:04.7]} 20... Qxe5 {[%clk 0:01:36.4]}
21. exd5 {[%clk 0:01:04.3]} 21... Qxb2 {[%clk 0:01:30.4]} 22. Bf5 {[%clk
0:01:01.9]} 22... Bxd5 {[%clk 0:01:26.7]} 23. Qf4 {[%clk 0:01:01.8]} 23... Qxg2#
{[%clk 0:01:22.3]} 0-1

[Event "Early-Titled-Tuesday-Blitz-January-30-2024"]
[Site "Chess.com"]
[Date "2024.01.30"]
[Round "4"]
[White "MoreChessJulia"]
[Black "HajiyevKanan"]
[Result "0-1"]
[WhiteElo "2163"]
[BlackElo "2579"]
[TimeControl "180+1"]
[EndTime "8:38:43 PST"]
[Termination "HajiyevKanan won by resignation"]

1. d4 {[%clk 0:02:27.7]} 1... c6 {[%clk 0:03:00.9]} 2. c4 {[%clk 0:02:27.1]}
2... d5 {[%clk 0:03:01.8]} 3. Nf3 {[%clk 0:02:26.7]} 3... Nf6 {[%clk 0:03:02.4]}
4. e3 {[%clk 0:02:26.9]} 4... Bg4 {[%clk 0:03:01.3]} 5. h3 {[%clk 0:02:25.6]}
5... Bh5 {[%clk 0:03:01]} 6. g4 {[%clk 0:02:25.9]} 6... Bg6 {[%clk 0:03:01.6]}
7. Nc3 {[%clk 0:02:25.9]} 7... e6 {[%clk 0:03:00.5]} 8. Ne5 {[%clk 0:02:25.9]}
8... Nfd7 {[%clk 0:02:59.8]} 9. h4 {[%clk 0:02:24.7]} 9... Nxe5 {[%clk
0:02:59.3]} 10. dxe5 {[%clk 0:02:24.5]} 10... h5 {[%clk 0:02:59.6]} 11. Be2
{[%clk 0:02:22]} 11... hxg4 {[%clk 0:02:57.8]} 12. Bxg4 {[%clk 0:02:22]} 12...
Rxh4 {[%clk 0:02:57.6]} 13. Rxh4 {[%clk 0:02:21.7]} 13... Qxh4 {[%clk
0:02:58.5]} 14. Qf3 {[%clk 0:02:20.5]} 14... Bb4 {[%clk 0:02:55.8]} 15. Bd2
{[%clk 0:02:19.9]} 15... Bxc3 {[%clk 0:02:48.4]} 16. Bxc3 {[%clk 0:02:19.5]}
16... Be4 {[%clk 0:02:48.8]} 17. Qe2 {[%clk 0:02:14]} 17... Qh1+ {[%clk
0:02:46]} 18. Qf1 {[%clk 0:02:13.2]} 18... Qxf1+ {[%clk 0:02:45.2]} 19. Kxf1
{[%clk 0:02:13.4]} 19... Bd3+ {[%clk 0:02:45.6]} 20. Be2 {[%clk 0:02:12.8]}
20... Bxc4 {[%clk 0:02:35.3]} 21. Bxc4 {[%clk 0:02:12.1]} 21... dxc4 {[%clk
0:02:36.2]} 22. Ke2 {[%clk 0:02:05.8]} 22... Nd7 {[%clk 0:02:35.4]} 23. Rh1
{[%clk 0:02:03.6]} 23... O-O-O {[%clk 0:02:20.4]} 24. Rh7 {[%clk 0:02:02.3]}
24... Rg8 {[%clk 0:02:17.3]} 25. f4 {[%clk 0:01:59.8]} 25... b5 {[%clk
0:02:10.5]} 26. a3 {[%clk 0:01:59.1]} 26... Nb6 {[%clk 0:02:08.6]} 27. Bb4
{[%clk 0:01:57.9]} 27... Nd5 {[%clk 0:02:07.8]} 28. Bd6 {[%clk 0:01:57]} 28...
a5 {[%clk 0:02:06.5]} 29. Kf3 {[%clk 0:01:57]} 29... Kd7 {[%clk 0:01:54.2]} 30.
e4 {[%clk 0:01:56.3]} 30... Ne7 {[%clk 0:01:41.8]} 31. Kg4 {[%clk 0:01:54.8]}
31... Ng6 {[%clk 0:01:31.8]} 32. f5 {[%clk 0:01:54]} 32... Ne7 {[%clk
0:01:24.5]} 33. Kf4 {[%clk 0:01:52.6]} 33... exf5 {[%clk 0:01:13.7]} 34. exf5
{[%clk 0:01:52.1]} 34... b4 {[%clk 0:01:14.4]} 35. Bxe7 {[%clk 0:01:51.2]} 35...
Kxe7 {[%clk 0:01:13.7]} 36. Rxg7 {[%clk 0:01:50]} 36... Rxg7 {[%clk 0:01:11.7]}
37. f6+ {[%clk 0:01:50.2]} 37... Kf8 {[%clk 0:01:12.4]} 38. fxg7+ {[%clk
0:01:50.2]} 38... Kxg7 {[%clk 0:01:13.3]} 39. axb4 {[%clk 0:01:49.2]} 39... axb4
{[%clk 0:01:12.6]} 40. Ke4 {[%clk 0:01:49.7]} 40... c3 {[%clk 0:01:09.6]} 41.
bxc3 {[%clk 0:01:47.8]} 41... bxc3 {[%clk 0:01:10.5]} 42. Kd3 {[%clk 0:01:47.6]}
42... Kg6 {[%clk 0:01:11.1]} 43. Kxc3 {[%clk 0:01:47.6]} 43... Kf5 {[%clk
0:01:11.5]} 44. Kd4 {[%clk 0:01:47.8]} 44... Ke6 {[%clk 0:01:10.4]} 45. Ke4
{[%clk 0:01:47.7]} 45... c5 {[%clk 0:01:10.9]} 46. Kf4 {[%clk 0:01:47.4]} 46...
Kd5 {[%clk 0:01:10.4]} 0-1

[Event "Early-Titled-Tuesday-Blitz-January-30-2024"]
[Site "Chess.com"]
[Date "2024.01.30"]
[Round "4"]
[White "LeoLV10"]
[Black "ChessSkool"]
[Result "0-1"]
[WhiteElo "2451"]
[BlackElo "2689"]
[TimeControl "180+1"]
[EndTime "8:38:48 PST"]
[Termination "ChessSkool won by resignation"]

1. e4 {[%clk 0:02:57.3]} 1... c6 {[%clk 0:02:38.9]} 2. d4 {[%clk 0:02:56.4]}
2... d5 {[%clk 0:02:39.8]} 3. e5 {[%clk 0:02:57.3]} 3... Bf5 {[%clk 0:02:39.5]}
4. h4 {[%clk 0:02:57.1]} 4... h5 {[%clk 0:02:39.6]} 5. Bd3 {[%clk 0:02:57.3]}
5... Bxd3 {[%clk 0:02:39.8]} 6. Qxd3 {[%clk 0:02:58.1]} 6... Qa5+ {[%clk
0:02:37.7]} 7. Nd2 {[%clk 0:02:54.3]} 7... e6 {[%clk 0:02:37.2]} 8. Nf3 {[%clk
0:02:53.2]} 8... Nh6 {[%clk 0:02:36.7]} 9. O-O {[%clk 0:02:52.7]} 9... Nf5
{[%clk 0:02:37]} 10. c4 {[%clk 0:02:53.1]} 10... Be7 {[%clk 0:02:34.9]} 11. g3
{[%clk 0:02:49.2]} 11... O-O {[%clk 0:02:30.5]} 12. b3 {[%clk 0:02:48.2]} 12...
Rd8 {[%clk 0:02:29]} 13. Bb2 {[%clk 0:02:30.7]} 13... c5 {[%clk 0:01:59.7]} 14.
cxd5 {[%clk 0:02:27.6]} 14... Rxd5 {[%clk 0:02:00.6]} 15. Nc4 {[%clk 0:02:25.3]}
15... Qa6 {[%clk 0:02:01]} 16. Qe4 {[%clk 0:02:12.1]} 16... cxd4 {[%clk
0:01:24.6]} 17. Nxd4 {[%clk 0:02:10.8]} 17... Nxd4 {[%clk 0:01:24.9]} 18. Bxd4
{[%clk 0:02:11.5]} 18... Nc6 {[%clk 0:01:25.4]} 19. Bc3 {[%clk 0:01:53.7]} 19...
Rad8 {[%clk 0:01:24.7]} 20. Qf3 {[%clk 0:01:42.5]} 20... Rd3 {[%clk 0:01:20.2]}
21. Qxh5 {[%clk 0:01:24.3]} 21... Rxc3 {[%clk 0:01:20.3]} 22. Ne3 {[%clk
0:01:23.9]} 22... g6 {[%clk 0:01:08.7]} 23. Qh6 {[%clk 0:01:14.5]} 23... Nxe5
{[%clk 0:01:07.7]} 24. h5 {[%clk 0:01:14.4]} 24... Bg5 {[%clk 0:00:54.5]} 0-1